bitfinex/quotes_SOLUSD_20220130
["timestamp","ask_amount","ask_price","bid_price","bid_amount"]
[1643543294792,62.259,95.79,95.692,0.3]
[1643543294793,2.95669142,95.779,95.692,0.3]
[1643543294993,2.95669142,95.779,95.672,104.3]
[1643543294994,2.95669142,95.779,95.673,0.3]
[1643543295192,25.685,95.77,95.673,0.3]
[1643543295595,39.505,95.77,95.691,35.68324629]
[1643543295794,2.95669142,95.769,95.692,0.3]
[1643543295991,10.0,95.77,95.692,0.3]
[1643543296191,10.0,95.77,95.717,0.25]
[1643543296599,10.0,95.77,95.692,0.3]
[1643543297193,2.95669142,95.769,95.692,0.3]
[1643543297596,15.68,95.77,95.692,0.3]
[1643543298197,0.25,95.769,95.692,0.3]
[1643543298395,18.63669142,95.77,95.692,0.3]
[1643543298595,15.68,95.77,95.692,0.3]
[1643543298796,2.95669142,95.769,95.692,0.3]
[1643543298995,10.0,95.78,95.692,0.3]
[1643543299203,10.0,95.78,95.717,0.25]
[1643543299599,10.0,95.8,95.727,45.79699462]
[1643543299901,10.0,95.8,95.728,0.1]
[1643543300102,6.0,95.79,95.646,0.3]
[1643543300299,6.0,95.79,95.717,0.25]
[1643543300902,6.0,95.79,95.718,41.5314033]
[1643543301102,6.0,95.79,95.719,0.1]
[1643543301304,6.0,95.79,95.719,0.35]
[1643543302104,2.95669142,95.799,95.719,0.35]
[1643543302806,2.95669142,95.815,95.719,0.35]
[1643543303005,10.0,95.81,95.719,0.35]
[1643543303408,12.95669142,95.81,95.719,0.35]
[1643543304007,28.62869142,95.81,95.719,0.35]
[1643543305815,6.0,95.8,95.719,104.65]
[1643543306110,6.0,95.8,95.729,6.0]
[1643543306312,6.0,95.8,95.73,0.25]
[1643543306912,2.95669142,95.799,95.73,0.25]
[1643543307511,2.95669142,95.799,95.719,0.35]
[1643543308513,10.0,95.81,95.728,6.0]
[1643543308915,10.0,95.81,95.729,0.25]
[1643543309113,2.95669142,95.809,95.729,0.25]
[1643543309515,6.0,95.799,95.729,0.25]
[1643543309914,2.95669142,95.798,95.719,0.35]
[1643543310117,2.95669142,95.798,95.728,6.0]
[1643543310323,2.95669142,95.798,95.729,0.25]
[1643543310516,15.675,95.8,95.729,6.25]
[1643543310717,10.0,95.81,95.729,6.35]
[1643543310921,18.2843777,95.819,95.729,6.25]
[1643543311216,8.95669142,95.809,95.729,6.25]
[1643543311419,8.95669142,95.809,95.729,0.25]
[1643543311616,2.95669142,95.808,95.729,0.25]
[1643543311919,6.0,95.809,95.72,0.35]
[1643543312117,2.95669142,95.821,95.729,6.0]
[1643543312318,2.95669142,95.821,95.73,25.2325]
[1643543312618,2.95669142,95.808,95.731,0.1]
[1643543312818,2.95669142,95.808,95.74,6.0]
[1643543313019,15.673,95.81,95.74,6.0]
[1643543313217,18.62969142,95.81,95.741,6.0]
[1643543313417,18.62969142,95.81,95.742,0.25]
[1643543313618,2.95669142,95.826,95.742,0.25]
[1643543314025,0.25,95.825,95.742,0.25]
[1643543314219,0.25,95.825,95.741,6.1]
[1643543314220,15.672,95.82,95.741,6.1]
[1643543314423,15.672,95.82,95.732,0.1]
[1643543314618,6.0,95.81,95.732,0.35]
[1643543315018,2.95669142,95.809,95.732,0.35]
[1643543317023,15.673,95.81,95.741,6.0]
[1643543317222,2.95669142,95.809,95.732,0.35]
[1643543318443,2.95669142,95.809,95.741,6.0]
[1643543318847,2.95669142,95.809,95.742,0.25]
[1643543319848,2.95669142,95.809,95.732,0.35]
[1643543321050,0.25,95.808,95.732,0.1]
[1643543321251,0.25,95.808,95.732,0.35]
[1643543321452,2.95669142,95.807,95.732,0.35]
[1643543322164,2.95669142,95.807,95.732,0.1]
[1643543322353,6.0,95.797,95.732,0.1]
[1643543322555,2.95669142,95.807,95.732,0.1]
[1643543322754,2.95669142,95.796,95.732,0.1]
[1643543323553,0.25,95.808,95.741,6.0]
[1643543323753,0.25,95.808,95.732,0.35]
[1643543323955,0.25,95.808,95.742,0.25]
[1643543324155,0.25,95.808,95.732,0.35]
[1643543324953,2.95669142,95.823,95.732,0.35]
[1643543325155,2.95669142,95.823,95.741,6.0]
[1643543325355,0.25,95.822,95.742,0.25]
[1643543325554,25.672,95.82,95.732,0.1]
[1643543325758,37.502,95.82,95.732,0.1]
[1643543325954,58.254,95.81,95.719,0.1]
[1643543326155,58.254,95.81,95.719,0.35]
[1643543326355,2.95669142,95.809,95.719,0.35]
[1643543326755,25.675,95.8,95.719,25.2607]
[1643543326956,25.675,95.8,95.72,0.1]
[1643543327156,2.95669142,95.799,95.72,0.1]
[1643543328257,15.677,95.79,95.72,0.1]
[1643543328656,2.95669142,95.789,95.72,0.1]
[1643543329260,15.677,95.79,95.721,43.91882327]
[1643543329461,2.95669142,95.789,95.722,0.1]
[1643543329665,2.95669142,95.789,95.722,0.35]
[1643543329964,10.0,95.8,95.722,0.35]
[1643543330364,10.0,95.8,95.724,2.90665877]
[1643543330763,6.0,95.79,95.725,0.25]
[1643543331463,34.29909142,95.81,95.731,6.0]
[1643543331665,34.29909142,95.81,95.732,24.206]
[1643543331866,31.3424,95.81,95.733,0.1]
[1643543332066,31.3424,95.81,95.742,6.0]
[1643543332268,31.3424,95.81,95.743,0.25]
[1643543332867,0.25,95.809,95.743,0.25]
[1643543333672,15.669,95.83,95.742,6.0]
[1643543333871,6.0,95.812,95.743,0.25]
[1643543334072,6.0,95.82,95.753,42.66538398]
[1643543334272,6.0,95.82,95.754,0.25]
[1643543335075,6.0,95.82,95.753,42.66538398]
[1643543336077,21.671,95.82,95.753,42.66538398]
[1643543336275,21.671,95.82,95.754,0.25]
[1643543336499,6.0,95.82,95.754,0.25]
[1643543336900,0.25,95.819,95.754,0.25]
[1643543337098,0.25,95.819,95.754,46.1782]
[1643543337299,6.0,95.837,95.754,46.1782]
[1643543338201,15.67,95.83,95.754,45.9282]
[1643543338600,2.95669142,95.829,95.754,45.9282]
[1643543340804,15.67,95.83,95.755,0.25]
[1643543341104,25.67,95.83,95.755,0.25]
[1643543342004,6.0,95.82,95.755,0.25]
[1643543342605,0.25,95.819,95.754,0.25]
[1643543343606,5.75,95.82,95.754,0.25]
[1643543344915,10.02211225,95.875,95.754,0.25]
[1643543344916,2.95669142,95.851,95.763,6.0]
[1643543345115,10.0,95.84,95.764,30.3133]
[1643543345320,10.0,95.84,95.765,0.25]
[1643543345916,2.95669142,95.839,95.765,0.25]
[1643543346317,2.95669142,95.839,95.764,24.3133]
[1643543346519,6.0,95.829,95.764,24.3133]
[1643543346917,2.95669142,95.828,95.764,24.3133]
[1643543347318,2.95669142,95.828,95.754,11.83]
[1643543347520,15.671,95.82,95.755,0.25]
[1643543350119,104.3,95.819,95.755,0.25]
[1643543350424,104.3,95.819,95.754,11.83]
[1643543350425,15.673,95.81,95.754,11.83]
[1643543351020,18.62969142,95.81,95.754,11.83]
[1643543351522,18.62969142,95.81,95.755,0.25]
[1643543351723,18.62969142,95.81,95.754,11.83]
[1643543352123,104.3,95.809,95.754,11.83]
[1643543352324,18.62969142,95.81,95.754,11.83]
[1643543353126,6.0,95.8,95.754,11.83]
[1643543353925,18.62969142,95.81,95.754,11.83]
[1643543354326,18.62969142,95.81,95.755,0.25]
[1643543355130,18.62969142,95.81,95.754,11.83]
[1643543355354,6.0,95.8,95.754,11.83]
[1643543355561,15.675,95.79,95.754,11.83]
[1643543356159,6.0,95.8,95.754,11.83]
[1643543356559,6.0,95.8,95.74,0.1]
[1643543356756,6.0,95.8,95.739,0.35]
[1643543357156,18.62869142,95.81,95.739,0.35]
[1643543357358,2.95669142,95.824,95.748,6.0]
[1643543357557,10.0,95.85,95.749,6.0]
[1643543357757,10.0,95.85,95.749,6.25]
[1643543357966,2.95669142,95.862,95.749,6.25]
[1643543358162,15.666,95.86,95.758,6.0]
[1643543358360,15.666,95.86,95.759,0.25]
[1643543358562,15.666,95.86,95.76,6.0]
[1643543359059,15.666,95.86,95.761,110.55]
[1643543359260,15.666,95.86,95.762,24.3834]
[1643543359463,15.666,95.86,95.763,104.3]
[1643543359660,15.666,95.86,95.773,6.0]
[1643543359860,37.8386,95.878,95.775,38.5670165]
[1643543360159,14.25717585,95.877,95.785,6.0]
[1643543360361,17.21386727,95.877,95.786,24.9451]
[1643543360663,2.95669142,95.876,95.796,6.0]
[1643543361061,15.662,95.87,95.796,6.0]
[1643543361262,15.662,95.87,95.797,0.25]
[1643543363664,15.662,95.87,95.796,6.0]
[1643543363863,15.662,95.87,95.797,0.25]
[1643543365064,6.0,95.86,95.787,0.25]
[1643543365267,15.662,95.87,95.787,0.25]
[1643543366064,6.0,95.86,95.787,0.25]
[1643543366664,15.662,95.87,95.787,0.25]
[1643543366865,15.662,95.87,95.796,6.0]
[1643543367272,21.663,95.86,95.797,0.25]
[1643543367469,2.95669142,95.876,95.797,0.25]
[1643543367866,6.0,95.866,95.797,0.25]
[1643543369066,15.662,95.87,95.797,0.25]
[1643543369567,15.662,95.87,95.806,6.0]
[1643543369766,15.662,95.87,95.807,44.00988667]
[1643543369967,15.662,95.87,95.807,43.75988667]
[1643543370166,15.662,95.87,95.808,0.25]
[1643543371967,6.0,95.86,95.807,43.75988667]
[1643543372166,15.662,95.87,95.807,43.75988667]
[1643543372968,2.95669142,95.876,95.807,43.75988667]
[1643543373169,15.2991,95.878,95.808,0.25]
[1643543374971,2.95669142,95.877,95.798,22.7525]
[1643543375171,6.0,95.868,95.798,22.7525]
[1643543375973,2.95669142,95.877,95.799,40.97162192]
[1643543376371,6.0,95.867,95.799,40.97162192]
[1643543376973,15.663,95.86,95.799,40.97162192]
[1643543380674,6.0,95.867,95.799,40.97162192]
[1643543381575,15.2991,95.878,95.799,40.97162192]
[1643543382176,24.5996,95.889,95.8,104.3]
[1643543382377,24.5996,95.889,95.81,104.3]
[1643543382576,25.56099142,95.909,95.811,22.5384]
[1643543382778,25.56099142,95.909,95.812,0.25]
[1643543382978,2.95669142,95.904,95.812,0.25]
[1643543383179,15.66,95.88,95.812,0.25]
[1643543385081,6.0,95.87,95.812,0.25]
[1643543385280,1.4333086,95.897,95.812,0.25]
[1643543385579,15.656,95.9,95.812,0.25]
[1643543385580,6.0,95.887,95.812,0.25]
[1643543386081,6.0,95.877,95.812,0.25]
[1643543386480,2.95669142,95.897,95.812,0.25]
[1643543386680,6.0,95.887,95.812,0.25]
[1643543387284,2.95669142,95.886,95.811,22.5384]
[1643543387482,4.39000002,95.886,95.811,22.5384]
[1643543387682,1.4333086,95.885,95.811,22.5384]
[1643543387882,4.39000002,95.885,95.811,22.5384]
[1643543388082,2.95669142,95.884,95.811,22.5384]
[1643543388582,6.0,95.887,95.811,126.8384]
[1643543388784,6.0,95.887,95.812,0.25]
[1643543390083,1.4333086,95.889,95.812,0.25]
[1643543390682,15.658,95.89,95.812,0.25]
[1643543390683,1.4333086,95.888,95.812,0.25]
[1643543392490,1.4333086,95.885,95.812,0.25]
[1643543392689,1.4333086,95.884,95.812,0.25]
[1643543393089,1.4333086,95.884,95.811,22.5384]
[1643543393289,15.66,95.88,95.811,22.5384]
[1643543393489,1.4333086,95.879,95.811,22.5384]
[1643543393691,4.39000002,95.879,95.811,22.5384]
[1643543394388,2.95669142,95.879,95.811,22.5384]
[1643543394591,4.39000002,95.879,95.811,22.5384]
[1643543394990,6.0,95.869,95.811,22.5384]
[1643543397421,1.4333086,95.878,95.811,22.5384]
[1643543398422,4.39000002,95.879,95.811,22.5384]
[1643543399621,4.39000002,95.879,95.792,1.44888195]
[1643543399622,104.3,95.869,95.792,1.44888195]
[1643543399822,104.3,95.869,95.793,0.25]
[1643543400023,22.831,95.868,95.793,0.25]
[1643543400422,40.60166103,95.868,95.793,0.25]
[1643543401025,6.0,95.858,95.785,23.8921]
[1643543401626,6.0,95.858,95.785,23.6421]
[1643543402223,15.665,95.85,95.785,23.6421]
[1643543402823,15.665,95.85,95.786,35.97908914]
[1643543405828,6.0,95.84,95.786,35.97908914]
[1643543411138,21.667,95.84,95.767,1.44888195]
[1643543411341,2.95669142,95.839,95.76,1.44888195]
[1643543411540,26.61539142,95.839,95.753,1.44888195]
[1643543411740,104.3,95.838,95.753,1.44888195]
[1643543411940,2.95669142,95.838,95.754,0.25]
[1643543412139,20.72735245,95.838,95.754,41.98066859]
[1643543412340,20.72735245,95.838,95.755,23.5219]
[1643543412539,2.95669142,95.838,95.755,23.5219]
[1643543412738,23.6587,95.839,95.755,23.5219]
[1643543414039,23.6587,95.839,95.755,24.97078195]
[1643543414443,23.6587,95.839,95.755,23.5219]
[1643543414841,15.668,95.83,95.755,23.5219]
[1643543415541,6.0,95.82,95.755,23.5219]
[1643543415944,15.668,95.83,95.755,23.5219]
[1643543417942,6.0,95.82,95.755,23.5219]
[1643543418441,15.668,95.83,95.755,23.5219]
[1643543420044,6.0,95.82,95.755,23.5219]
[1643543423556,15.668,95.83,95.755,23.5219]
[1643543424254,31.1561,95.83,95.755,23.5219]
[1643543426656,6.0,95.82,95.755,23.5219]
[1643543427061,34.11279142,95.83,95.755,23.5219]
[1643543427759,34.11279142,95.83,95.765,6.0]
[1643543428163,34.11279142,95.83,95.766,0.25]
[1643543428561,34.11279142,95.83,95.766,23.8974]
[1643543429161,2.95669142,95.83,95.766,23.8974]
[1643543429362,23.5216,95.849,95.776,6.0]
[1643543429563,15.664,95.85,95.777,6.0]
[1643543429762,15.664,95.85,95.777,0.25]
[1643543430162,15.664,95.85,95.777,22.7842]
[1643543430361,15.664,95.85,95.778,6.0]
[1643543430564,15.664,95.85,95.777,22.7842]
[1643543430565,6.0,95.84,95.777,22.7842]
[1643543434063,21.666,95.84,95.777,22.7842]
[1643543434964,15.666,95.84,95.777,22.7842]
[1643543438272,15.666,95.84,95.777,0.25]
[1643543438467,15.666,95.84,95.788,46.06546329]
[1643543438868,15.666,95.84,95.789,0.25]
[1643543439470,2.95669142,95.839,95.779,6.0]
[1643543439672,15.669,95.82,95.766,1.44888195]
[1643543439869,15.669,95.82,95.759,1.44888195]
[1643543440070,15.669,95.82,95.769,6.0]
[1643543440272,15.669,95.82,95.765,6.0]
[1643543440470,2.95669142,95.839,95.768,6.0]
[1643543440669,52.216,95.87,95.777,1.44888195]
[1643543440870,15.662,95.87,95.777,1.44888195]
[1643543441070,15.662,95.87,95.787,6.0]
[1643543441270,22.5701,95.866,95.788,23.0064]
[1643543441870,6.0,95.856,95.788,23.0064]
[1643543443470,15.663,95.86,95.788,23.0064]
[1643543444273,22.5701,95.866,95.788,23.0064]
[1643543445476,1.4333086,95.883,95.789,104.3]
[1643543445675,1.4333086,95.883,95.798,6.0]
[1643543445872,1.4333086,95.899,95.799,150.82045442]
[1643543446172,23.6572,95.909,95.799,150.82045442]
[1643543446173,1.4333086,95.904,95.809,6.0]
[1643543446374,1.4333086,95.905,95.81,151.6218]
[1643543446572,1.4333086,95.906,95.82,6.0]
[1643543446772,1.4333086,95.906,95.821,24.0293]
[1643543446975,25.0905086,95.909,95.821,128.3293]
[1643543447175,23.6572,95.909,95.821,128.3293]
[1643543447573,6.0,95.899,95.821,128.3293]
[1643543448373,23.6572,95.909,95.821,128.3293]
[1643543449173,23.6572,95.909,95.832,140.24101222]
[1643543449373,23.6572,95.909,95.834,104.3]
[1643543449774,23.6572,95.909,95.835,0.25]
[1643543450578,1.4333086,95.923,95.835,0.25]
[1643543450780,1.4333086,95.945,95.845,104.3]
[1643543450978,1.4333086,95.955,95.845,104.3]
[1643543451179,10.0,95.95,95.856,104.3]
[1643543451378,23.1626,95.963,95.857,0.25]
[1643543451581,47.6775,95.963,95.867,104.3]
[1643543451778,47.6775,95.963,95.868,70.22073871]
[1643543451979,1.4333086,95.967,95.878,104.3]
[1643543452178,1.4333086,95.975,95.879,23.231]
[1643543452380,1.4333086,95.974,95.88,104.3]
[1643543452578,6.0,95.965,95.891,104.3]
[1643543452804,6.0,95.965,95.892,23.481]
[1643543453183,6.0,95.965,95.893,104.3]
[1643543453379,6.0,95.965,95.894,0.25]
[1643543454580,1.4333086,95.978,95.894,0.25]
[1643543454780,6.0,95.968,95.894,0.25]
[1643543455482,15.643,95.98,95.894,0.25]
[1643543455684,6.0,95.97,95.894,0.25]
[1643543459985,21.645,95.97,95.893,104.3]
[1643543460185,21.645,95.97,95.892,23.231]
[1643543460385,21.645,95.97,95.893,0.25]
[1643543460785,23.3887,95.969,95.893,0.25]
[1643543462589,15.647,95.96,95.84,15.648]
[1643543462790,15.647,95.96,95.847,23.6581]
[1643543462989,2.95669142,95.959,95.847,23.6581]
[1643543463192,104.3,95.957,95.847,23.6581]
[1643543463593,2.95669142,95.956,95.847,23.6581]
[1643543464088,15.652,95.94,95.847,23.6581]
[1643543464690,6.0,95.93,95.847,23.6581]
[1643543466591,15.652,95.93,95.847,23.6581]
[1643543468825,6.0,95.92,95.847,23.6581]
[1643543472833,21.653,95.92,95.847,23.6581]
[1643543473135,15.653,95.92,95.847,23.6581]
[1643543473534,15.653,95.92,95.848,0.25]
[1643543474333,15.653,95.92,95.848,37.91740338]
[1643543474533,1.4333086,95.938,95.848,37.91740338]
[1643543474732,1.4333086,95.937,95.848,37.91740338]
[1643543474933,22.5385,95.939,95.848,37.91740338]
[1643543475133,6.0,95.929,95.848,37.91740338]
[1643543476535,15.652,95.93,95.848,37.91740338]
[1643543477535,107.25669142,95.929,95.823,1.44888195]
[1643543477736,15.658,95.9,95.821,23.4773]
[1643543477938,22.6217,95.899,95.804,1.44888195]
[1643543478138,22.6217,95.899,95.814,6.0]
[1643543478337,22.6217,95.899,95.802,1.44888195]
[1643543478538,22.6217,95.899,95.812,6.0]
[1643543478739,22.6217,95.899,95.813,22.5009]
[1643543478942,22.6217,95.899,95.813,28.5009]
[1643543479141,22.6217,95.899,95.813,22.5009]
[1643543479544,22.6217,95.899,95.823,6.0]
[1643543479740,22.6217,95.899,95.824,24.3044]
[1643543480143,22.6217,95.899,95.835,46.66828876]
[1643543480542,22.6217,95.899,95.845,6.0]
[1643543482142,22.6217,95.899,95.846,6.0]
[1643543486046,22.6217,95.899,95.847,0.25]
[1643543488170,15.654,95.92,95.847,0.25]
[1643543488372,1.4333086,95.926,95.847,127.5017]
[1643543488571,1.4333086,95.938,95.847,23.2017]
[1643543488870,77.4472086,95.939,95.847,23.2017]
[1643543489071,76.0139,95.939,95.847,23.2017]
[1643543489273,24.018,95.938,95.847,23.2017]
[1643543490872,6.0,95.928,95.847,23.2017]
[1643543491172,24.018,95.938,95.847,22.9517]
[1643543491373,6.0,95.928,95.847,22.9517]
[1643543491677,24.0946,95.927,95.847,22.9517]
[1643543493274,24.0946,95.927,95.848,0.25]
[1643543493875,25.5279086,95.927,95.845,6.0]
[1643543494074,1.4333086,95.923,95.847,6.0]
[1643543494276,1.4333086,95.924,95.847,6.0]
[1643543494479,24.0946,95.927,95.847,6.0]
[1643543494876,25.5279086,95.927,95.847,6.0]
[1643543495278,25.5279086,95.927,95.848,0.25]
[1643543495677,24.0946,95.927,95.848,0.25]
[1643543496078,25.5279086,95.927,95.848,0.25]
[1643543496579,1.4333086,95.926,95.847,6.0]
[1643543496983,1.4333086,95.922,95.847,6.0]
[1643543497381,1.4333086,95.925,95.848,6.0]
[1643543497782,1.4333086,95.923,95.848,6.0]
[1643543498183,6.0,95.913,95.848,6.0]
[1643543498585,1.4333086,95.923,95.848,6.0]
[1643543498784,15.654,95.92,95.848,6.0]
[1643543499189,15.654,95.92,95.849,0.25]
[1643543499391,15.654,95.92,95.849,24.5471]
[1643543501393,15.654,95.92,95.85,0.25]
[1643543501795,6.0,95.91,95.85,0.25]
[1643543503198,24.0946,95.927,95.85,0.25]
[1643543503398,6.0,95.916,95.85,0.25]
[1643543505498,1.4333086,95.925,95.85,0.25]
[1643543505898,1.4333086,95.926,95.85,0.25]
[1643543506099,1.4333086,95.925,95.85,0.25]
[1643543506307,1.4333086,95.926,95.85,0.25]
[1643543506599,105.7333086,95.926,95.85,0.25]
[1643543506801,6.0,95.916,95.85,0.25]
[1643543507601,6.0,95.916,95.849,24.2971]
[1643543507802,104.3,95.915,95.847,6.0]
[1643543508305,24.7111,95.914,95.818,1.44888195]
[1643543508502,24.7111,95.914,95.817,1.44888195]
[1643543509114,15.655,95.91,95.836,23.4989]
[1643543509303,15.655,95.91,95.836,23.7489]
[1643543510705,15.655,95.91,95.836,23.4989]
[1643543510903,15.655,95.91,95.837,0.25]
[1643543512409,1.4333086,95.925,95.837,0.25]
[1643543512605,1.4333086,95.936,95.846,6.0]
[1643543512829,1.4333086,95.937,95.847,127.1161]
[1643543513030,1.4333086,95.947,95.857,6.0]
[1643543513231,1.4333086,95.951,95.86,15.645]
[1643543513435,1.4333086,95.956,95.86,15.645]
[1643543513632,1.4333086,95.956,95.872,35.49751795]
[1643543513832,1.4333086,95.962,95.873,152.2685]
[1643543514031,1.4333086,95.965,95.883,6.0]
[1643543514331,1.4333086,95.97,95.884,0.25]
[1643543514532,1.4333086,95.974,95.884,29.9149]
[1643543515232,1.4333086,95.979,95.89,15.64]
[1643543515432,1.4333086,95.98,95.891,104.3]
[1643543515631,1.4333086,95.98,95.901,110.3]
[1643543515832,1.4333086,95.98,95.902,43.49854796]
[1643543516031,1.4333086,95.98,95.913,104.3]
[1643543516236,1.4333086,95.981,95.914,24.0628]
[1643543516435,15.4369,96.012,95.914,47.7877]
[1643543516436,1.4333086,95.984,95.914,47.7877]
[1643543516833,1.4333086,95.988,95.915,104.3]
[1643543517034,1.4333086,95.989,95.915,104.3]
[1643543517233,1.4333086,96.0,95.916,0.25]
[1643543517637,1.4333086,95.996,95.925,6.0]
[1643543517840,1.4333086,95.996,95.916,0.25]
[1643543517841,1.4333086,95.996,95.926,25.1473]
[1643543518037,14.08720278,95.999,95.926,25.1473]
[1643543518038,1.4333086,96.001,95.937,42.52069101]
[1643543518236,67.9198,96.05,95.937,42.52069101]
[1643543518237,1.4333086,96.02,95.939,104.3]
[1643543518437,1.4333086,96.029,95.948,104.3]
[1643543518637,24.1946,96.033,95.949,23.8737049]
[1643543518835,24.1946,96.033,95.949,24.1237049]
[1643543519037,1.4333086,96.051,95.959,6.0]
[1643543519237,1.4333086,96.051,95.96,23.9106]
[1643543519438,29.73497091,96.05,95.96,24.1606]
[1643543519637,15.632,96.05,95.97,6.0]
[1643543519837,15.632,96.05,95.971,33.63498073]
[1643543520939,2.95669142,96.062,95.972,104.3]
[1643543521138,6.0,96.052,95.982,6.0]
[1643543521442,6.0,96.052,95.983,104.55]
[1643543521640,6.0,96.077,95.993,6.0]
[1643543521839,6.0,96.077,95.994,22.9724]
[1643543522040,6.0,96.077,96.005,43.13074516]
[1643543522243,2.95669142,96.093,96.005,43.13074516]
[1643543522440,5.5,96.067,96.015,6.0]
[1643543522646,2.95669142,96.093,96.015,6.0]
[1643543522841,2.45669142,96.093,96.016,0.25]
[1643543523041,15.626,96.09,96.016,0.25]
[1643543523242,15.126,96.09,96.016,0.25]
[1643543524741,6.0,96.08,96.016,0.25]
[1643543525345,78.3072,96.096,96.016,0.25]
[1643543525744,78.3072,96.096,96.016,6.25]
[1643543526947,15.623,96.11,96.016,16.04]
[1643543527143,6.0,96.1,96.016,16.04]
[1643543527543,15.425,96.123,96.02,6.0]
[1643543527544,6.0,96.09,96.02,6.0]
[1643543527846,6.0,96.09,96.026,6.0]
[1643543528043,6.0,96.111,96.026,6.0]
[1643543528245,6.0,96.111,96.027,0.25]
[1643543528644,6.0,96.111,96.02,104.3]
[1643543529446,15.621,96.12,96.02,104.3]
[1643543529845,15.621,96.12,96.03,6.0]
[1643543530045,15.621,96.12,96.02,104.3]
[1643543530245,2.95669142,96.119,96.021,0.25]
[1643543530449,15.622,96.11,96.021,0.25]
[1643543530644,6.0,96.109,96.026,6.0]
[1643543530844,6.0,96.109,96.027,0.25]
[1643543531847,6.0,96.109,96.027,104.55]
[1643543532645,6.0,96.109,96.029,104.3]
[1643543532848,6.0,96.109,96.03,0.25]
[1643543533047,15.622,96.11,96.03,0.25]
[1643543533344,15.62,96.13,96.03,0.25]
[1643543533544,15.62,96.13,96.04,34.50248891]
[1643543533844,15.62,96.13,96.041,0.25]
[1643543535446,15.62,96.13,96.041,12.8]
[1643543536545,6.0,96.111,96.041,12.8]
[1643543537747,15.62,96.13,96.051,6.0]
[1643543538153,15.62,96.13,96.053,104.3]
[1643543538350,15.62,96.13,96.054,0.25]
[1643543538550,15.62,96.13,96.063,6.0]
[1643543539077,15.62,96.13,96.064,6.25]
[1643543539451,15.62,96.13,96.065,6.0]
[1643543539953,15.62,96.13,96.066,0.25]
[1643543541656,2.95669142,96.146,96.066,104.55]
[1643543541857,15.616,96.15,96.066,104.55]
[1643543542056,15.616,96.15,96.076,6.0]
[1643543542255,15.616,96.15,96.077,42.8656831]
[1643543542456,6.0,96.14,96.077,42.8656831]
[1643543542855,15.616,96.15,96.087,6.0]
[1643543543259,1.4333086,96.17,96.088,0.25]
[1643543543557,1.4333086,96.174,96.088,128.906]
[1643543543756,0.1,96.189,96.088,128.906]
[1643543543958,0.1,96.189,96.099,104.3]
[1643543544256,6.0,96.18,96.11,35.66692677]
[1643543544557,6.0,96.188,96.111,23.2843]
[1643543544758,6.0,96.188,96.111,23.5343]
[1643543544957,6.0,96.188,96.111,0.25]